Cogmind - Beta 16 *** ADVENTURER MODE // 2025.11.19 @ 10:52:29 Player: Pixelizer Result: Self-destructed Performance ------------- Evolutions (1) 500 Regions Visited (2) 400 Robots Destroyed (22) 110 Value Destroyed (466) 466 Prototype IDs (0) 0 Alien Tech Used (0) 0 Bonus (0) 0 TOTAL SCORE: 1476 Bonus ------- None Cogmind --------- Core Integrity 217/400 Matter 300/300 Energy 56/100 System Corruption 0% Temperature Cool (0) Movement Core (150) Ox2 Location -9/Materials Parts ------- > --- POWER (2) -------- (None) > --- PROPULSION (2) --- (None) > --- UTILITY (3) ------ Small Storage Unit Improved Targeting Computer > --- WEAPON (2) ------- Mining Claw > --- INVENTORY (8) ---- Aluminum Leg Peak State ------------ > --- POWER ------------ Ion Engine Ion Engine > --- PROPULSION ------- Aluminum Leg Aluminum Leg > --- UTILITY ---------- Small Storage Unit Targeting Computer Improved Targeting Computer > --- WEAPON ----------- Medium Laser Medium Laser > --- INVENTORY -------- Light Ion Engine Aluminum Leg Medium Laser Medium Laser [Rating: 10] Favorites ----------- Power Ion Engine Engine Ion Engine Propulsion Aluminum Leg Leg Aluminum Leg Utility Small Storage Unit Device Shield Generator Storage Small Storage Unit Processor Targeting Computer Weapon Medium Laser Energy Gun Medium Laser Slashing Weapon Mining Claw Build | -11 -10 -9 ------- Run | Yrd Mat Mat Slots Evolved 2 | . . 2 Power 1 | . . 1 Propulsion . | . . . Utility 1 | . . 1 Weapon . | . . . Parts Attached 17 | 6 3 8 Power 4 | 1 1 2 Engine 4 | 1 1 2 Core . | . . . Reactor . | . . . Propulsion 3 | 2 . 1 Treads . | . . . Leg 3 | 2 . 1 Wheel . | . . . Hover . | . . . Flight . | . . . Utility 4 | 1 1 2 Device 1 | . . 1 Storage 1 | 1 . . Processor 2 | . 1 1 Hackware . | . . . Protection . | . . . Artifact . | . . . Weapon 6 | 2 1 3 Energy Gun 5 | 2 1 2 Energy Cannon . | . . . Ballistic Gun . | . . . Ballistic Cannon . | . . . Launcher . | . . . Special Weapon . | . . . Impact Weapon . | . . . Slashing Weapon 1 | . . 1 Piercing Weapon . | . . . Special Melee Weapon . | . . . Unidentified Prototypes . | . . . Parts Lost 9 | . . 9 Power 3 | . . 3 Propulsion 3 | . . 3 Utility 2 | . . 2 Weapon 1 | . . 1 Highest Loss Streak 5 | . . 5 To Critical Strikes . | . . . Average Backups 2 | . 2 2 Power . | . 1 . Propulsion . | . . . Utility . | . . . Weapon 1 | . 1 1 Tool/Special . | . . . Unused Backups . | . . . Power . | . . . Propulsion . | . . . Utility . | . . . Weapon . | . . . Tool/Special . | . . . Average Slot Usage (%) 86 | . 89 83 Engine 16 | . 14 18 Leg 23 | . 28 18 Storage 12 | . 14 11 Processor 9 | . 3 15 Energy Gun 22 | . 28 16 Slashing Weapon 1 | . . 2 Peak Build Rating 10 | 6 7 10 Average Rating 7 | 4 6 8 On Entrance 4 | . 6 7 Avg Prop Armor Cover (%) . | . . . Naked Turns . | . . . Heaviest Build 19 | 12 14 19 Greatest Support 20 | 20 20 20 Greatest Overweight (x) 2 | . . 2 Average Overweight (x) . | . . . Largest Inventory Capacity 8 | 8 8 8 Average Capacity 7 | 6 8 8 Most Carried 4 | 2 4 4 Average Carried 2 | . 2 2 Final Capacity 8 | 8 8 8 Final Carried 4 | 1 4 1 Class Distribution -------------------- 100% | Mutant Dominant Class ---------------- Mutant | -10/Materials Mutant | -9/Materials Resources | -11 -10 -9 ----------- Run | Yrd Mat Mat Matter Collected 353 | 210 78 65 Remotely . | . . . Salvage Created 568 | . 227 341 Parts 30 | . 12 18 Haulers Intercepted . | . . . Recyclers Shooed . | . . . Parts Field Recycled . | . . . Retrieved Matter . | . . . Parts Self-Destructed . | . . . Prevented . | . . . Parts Restored . | . . . Kills | -11 -10 -9 ------- Run | Yrd Mat Mat Combat Hostiles Destroyed 20 | . 9 11 Melee 1 | . . 1 Guns 14 | . 5 9 AOE 4 | . 4 . Classes Destroyed 4 | . 3 1 Watcher 2 | . 1 1 Swarmer 12 | . 6 6 Grunt 6 | . 3 3 Sentry 2 | . . 2 Best Kill Streak 3 | . 3 3 Combat Bots Only 3 | . 3 3 Max Kills in Single Turn 2 | . 2 2 Gunslinging 1 | . . 1 Exploded 2 | . 2 . Melee 1 | . . 1 Uniques/NPCs Destroyed . | . . . Combat | -11 -10 -9 -------- Run | Yrd Mat Mat Hostile Shots Fired 130 | . 17 113 Missed 35 | . 4 31 Hits 95 | . 13 82 Projectile 95 | . 13 82 AOE 2 | . . 2 Critical Strikes 4 | . . 4 Damage Taken 884 | . 122 762 Core 183 | . . 183 Absorbed by Shields 98 | . . 98 Ignored by Resistances 294 | . 36 258 Core Remaining (%) 100 | 100 100 . Volleys Fired 44 | . 16 28 Largest 2 | . 2 2 Hottest 100 | . 100 100 Shots Fired 88 | . 32 56 Gun 88 | . 32 56 Cannon . | . . . Launcher . | . . . Special . | . . . Kinetic . | . . . Thermal 78 | . 22 56 Explosive . | . . . Electromagnetic 10 | . 10 . Robot Hit Streak 14 | . 7 14 Robot Miss Streak 2 | . 2 2 Penetration Max . | . . . Secondary Targets 3 | . . 3 Max Gunslinging Chain 1 | . . 1 Shots Hit Robots 70 | . 22 48 Core Hits 29 | . 12 17 Critical Kills . | . . . Critical Parts Destroyed . | . . . Critical Strikes 5 | . 1 4 Burn 5 | . 1 4 Melee Attacks 11 | . . 11 Impact . | . . . Slashing 11 | . . 11 Piercing . | . . . Sneak Attacks . | . . . Combat Hostiles . | . . . Follow-up Attacks . | . . . Damage Inflicted 1112 | . 415 697 Guns 786 | . 279 507 Cannons . | . . . Explosions 133 | . 133 . Melee 190 | . . 190 Ramming 3 | . 3 . Kinetic . | . . . Thermal 801 | . 294 507 Explosive . | . . . Electromagnetic 118 | . 118 . Impact . | . . . Slashing 190 | . . 190 Piercing . | . . . Highest Corruption . | . . . Average Corruption . | . . . Corruption Purged . | . . . Corruption Blocked . | . . . Overload Shots . | . . . Overflow Damage 15 | . 15 . Projectiles . | . . . Explosions 15 | . 15 . Melee . | . . . Knockbacks . | . . . Impact . | . . . Kinetic . | . . . Secondary . | . . . Self-Inflicted Damage 28 | . 28 . Shots 1 | . 1 . Rammed . | . . . Targets Rammed 1 | . 1 . Kicked 1 | . 1 . Crushed . | . . . Highest Temperature 420 | . 129 420 Average Temperature 110 | . 40 144 Received Heat Transfer 368 | . 24 344 Effects 4 | . . 4 Shutdowns 2 | . . 2 Interference 2 | . . 2 Siege Activations . | . . . Martial Activations . | . . . Shielding Activations . | . . . Robots Disrupted . | . . . Combat Hostiles . | . . . Robots Corrupted . | . . . Combat Hostiles . | . . . Parts Fried . | . . . Impact Corruptions . | . . . Robots Melted 1 | . . 1 Combat Hostiles 1 | . . 1 Parts Melted 8 | . 1 7 Heat Transferred 2568 | . 755 1813 Parts Sabotaged . | . . . Parts Stolen . | . . . Parts Stripped . | . . . Power Chain Reactions 2 | . 2 . Alert | -11 -10 -9 ------- Run | Yrd Mat Mat Maximum Alert Level . | . . . Low Security (%) 100 | 100 100 100 Level 1 . | . . . Level 2 . | . . . Level 3 . | . . . Level 4 . | . . . Level 5 . | . . . High Security . | . . . Max Security . | . . . Peak Influence 135 | . 135 135 Initial 9 | . . 9 Average 57 | . 63 57 Influence Increases 582 | . 245 337 Destroy 0b10 Robot/C 400 | . 180 220 Destroy 0b10 Robot/NC 10 | . 5 5 Destroy Leader 84 | . 32 52 Successful Hack 3 | . 3 . Disable Machine 18 | . 18 . Destroy Structure 7 | . 7 . Lose Combat Pursuer 60 | . . 60 Influence Decreases 562 | . 220 342 Entered New Map 16 | . . 16 Time Decay 469 | . 220 249 Lost Part 77 | . . 77 Squads Dispatched 3 | . 1 2 Investigation 2 | . 1 1 Extermination . | . . . Reinforcement 1 | . . 1 Assault . | . . . Garrison . | . . . Intercept . | . . . Searches Triggered . | . . . Construction Impeded . | . . . Haulers Reinforced . | . . . Active Scanning Responses . | . . . Cargo Convoy Interrupts . | . . . Stealth | -11 -10 -9 --------- Run | Yrd Mat Mat Distress Signals 4 | . 1 3 Communications Jammed . | . . . Distress Signals . | . . . Times Spotted 37 | . 12 25 Peak Tracking Total 8 | . 4 8 Tactical Retreats 3 | . . 3 Traps | -11 -10 -9 ------- Run | Yrd Mat Mat Traps Triggered 1 | . 1 . Indirectly . | . . . Trap Hack Attempts . | . . . Triggered . | . . . Disarmed . | . . . Reprogrammed . | . . . Reused . | . . . Traps Extracted . | . . . Installed . | . . . Triggered . | . . . Machines | -11 -10 -9 ---------- Run | Yrd Mat Mat Machines Disabled 2 | . 2 . Max in Single Turn 1 | . 1 . Machines Repaired . | . . . Machines Dismantled . | . . . Machines Sabotaged . | . . . Overloaded Fab Kills . | . . . Hacking | -11 -10 -9 --------- Run | Yrd Mat Mat Machines Accessed 5 | . 3 2 Terminals 5 | . 3 2 Fabricators . | . . . Repair Stations . | . . . Recycling Units . | . . . Scanalyzers . | . . . Garrison Access . | . . . Total Hacks 11 | . 8 3 Successful 1 | . 1 . Failed 10 | . 7 3 Catastrophic 4 | . 3 1 Database Lockouts . | . . . Manual 10 | . 7 3 Terminals 11 | . 8 3 Fabricators . | . . . Repair Stations . | . . . Recycling Units . | . . . Scanalyzers . | . . . Garrison Access . | . . . Terminal Hacks 1 | . 1 . Emergency Access Points 1 | . 1 . Fabricator Hacks . | . . . Repair Station Hacks . | . . . Recycling Unit Hacks . | . . . Scanalyzer . | . . . Garrison Access Hacks . | . . . Unauthorized Hacks . | . . . Terminals . | . . . Fabricators . | . . . Repair Stations . | . . . Recycling Units . | . . . Scanalyzers . | . . . Garrison Access . | . . . Data Cores Recovered . | . . . Used . | . . . Hacking Detections 4 | . 2 2 Full Trace Events 3 | . 2 1 Feedback Events . | . . . Feedback Blocked . | . . . Robot Schematics Acquired . | . . . Robots Built . | . . . Authchips . | . . . Time . | . . . Total Robot Build Rating . | . . . Part Schematics Acquired . | . . . Parts Built . | . . . Authchips . | . . . Time . | . . . Total Part Build Rating . | . . . Part Studies Acquired . | . . . Parts Repaired . | . . . Time . | . . . Parts Recycled . | . . . Recycled Matter . | . . . Retrieved Matter . | . . . Retrieved Components . | . . . Parts Scanalyzed . | . . . Part Schematics Acquired . | . . . Parts Damaged . | . . . Bothacking | -11 -10 -9 ------------ Run | Yrd Mat Mat Used RIF Installer . | . . . Robots Hacked . | . . . Non-combat . | . . . Combat . | . . . Robot Hacks Applied . | . . . Relay Couplers Released . | . . . Fabnet Peak Effective % . | . . . Robots Rewired . | . . . Allies Hacked . | . . . Hacks Repelled . | . . . Allies | -11 -10 -9 -------- Run | Yrd Mat Mat Total Allies . | . . . Largest Group . | . . . Highest-Rated Group . | . . . Highest-Rated Ally . | . . . Total Orders . | . . . Ally Attacks . | . . . Total Damage . | . . . Kills . | . . . Allies Corrupted . | . . . Allies Melted . | . . . Intel | -11 -10 -9 ------- Run | Yrd Mat Mat Active Infowar (turns) . | . . . Robot Analysis Total . | . . . Derelict Logs Recovered . | . . . Drone Launches . | . . . Drone Recoveries . | . . . Exploration | -11 -10 -9 ------------- Run | Yrd Mat Mat Turns Passed 1065 | 57 484 524 Spaces Moved 689 | 40 349 300 Core 6 | 1 . 5 Treads . | . . . Legs 683 | 39 349 295 Wheels . | . . . Hover . | . . . Flight . | . . . Fastest Speed 50 | 50 120 120 Average Speed 124 | 118 120 131 Slowest Speed 190 | 120 120 190 Overloaded Moves . | . . . Propulsion Burnouts . | . . . Robots Hopped . | . . . Potential Cave-ins . | . . . Cave-ins Triggered . | . . . Exploration Rate (%) 31 | 5 64 24 Regions Visited 2 Branch Regions . Pre-discovered Areas . | . . . Known Exits Taken . | . . . Unknown Exits Taken 2 | 1 1 . Scrap Searched . | . . . Spaces Dug . | . . . Terrain Destroyed 7 | . 7 . Melee . | . . . Projectile . | . . . AOE 7 | . 7 . Terrain Rammed . | . . . Walls Destroyed . | . . . Machines Disabled . | . . . Actions | -11 -10 -9 --------- Run | Yrd Mat Mat Total 779 | 47 381 351 Wait 9 | . 8 1 Move 687 | 39 348 300 Hop . | . . . Pick Up 5 | 2 3 . Fast Attach 12 | 5 3 4 Attach 4 | 1 . 3 Detach . | . . . Swap 1 | . . 1 Drop 5 | . 2 3 Fire 44 | . 16 28 Melee 11 | . . 11 Ram . | . . . Kick 1 | . 1 . Crush . | . . . Escape Stasis . | . . . Rewire . | . . . Trap . | . . . Miscellaneous . | . . . Route ------- -11/Scrapyard -10/Materials (discovered 2 exits: *Mat / [*Min]) -9/Materials History --------- Turn | Location | Event 6 | -11/Scrapyard | Discovered new exit (range 16) 58 | -11/Scrapyard | Entered Materials 231 | -10/Materials | Discovered new exit (range 11) 308 | -10/Materials | Discovered new exit (range 14) 318 | -10/Materials | Build established: Mutant 542 | -10/Materials | Entered another Materials area 542 | -9/Materials | Evolved 2 slots: Power x1, Utility x1 1066 | -9/Materials | Self-destructed Last Messages --------------- 01054_ Shield Generator destroyed. 01055_ U-05 Engineer lays Concrete. 01056_ U-05 Engineer builds a Wall. 01057_ U-05 Engineer lays Concrete. 01058_ U-05 Engineer builds a Wall. 01058_ K-01 Serf collects debris. 01059_ Y-45 Defender destroyed. 01060_ U-05 Engineer lays Concrete. 01061_ The unstable cave ceiling collapses. 01061_ U-05 Engineer lays Concrete. 01061_ K-01 Serf collects debris. 01063_ The unstable cave ceiling collapses. 01063_ U-05 Engineer lays Concrete. 01063_ U-05 Engineer builds a Door. 01064_ M-13 Machinist repairs A-02 Transporter Lgt. Treads. 01064_ U-05 Engineer lays Concrete. 01065_ The unstable cave ceiling collapses. 01065_ U-05 Engineer lays Concrete. 01065_ K-01 Serf collects debris. Map ----- +----------------------------------------------------+ | ?# + # # ^ ########### | | ?# # # ## ###### """ #?????????? | | ?######+#### # ## #????# """ #?????????? | | ??????# #########/#????# """ #?????????? | | ??????# #######??????? ????# #?????????? | | ??????#%#????????????? ""????# #?????????? | | ????###=###?????????? ""????# """ #?????????? | | ????# #?????????? ""????# """ #?????????? | | ????# #?????????? ????# """ #?????????? | | ????# #?????????##+####### #??????? "R | | ????# #????????? #### "" | | ????# #????????? / | | ???#### ###????????? ######????? | | ???# #???????????############ #?????????? | | ???# #????# ???????????????####/#####???????? | | ???#######????# ??????????????# ##??????? | | ??????????????# ?????????????# """ + ?? | | ??????????????# ##########???# """ ###### | | ??????????????# # ##### """ #???????? | | ??????????????# # # # ## #???????? | | ??????????????# ### ""#???????? | | ??????????????# + + T"#???????? | | ??????????????# u## ""#???????? | | ??????????????# ## ! #???????? | | ??????????????+ % ########/##???????? | | ??????????????# @ % #?????# #????????? | | ??????????????# m u =! ##?????# #????????? | | ??????????????# # k% #??????# #????????? | | ???????????? ???##/##+# [ # #??????# #????????? | | ?????????????????? ? ##### #??????# #????????? | | ????????????????? ? ????? #??????# #????????? | | ???????????????# ? ????? ???????# #????????? | | ???????????????# ? ????? ???????# #????????? | | ????????????????? ????? ????????%?????????? | | ???????????????# ?????? ???????? ?????????? | | ???????????????# ?????? ???????? ?????????? | | ???????????????# ?????? ???????? ?????????? | | ???????????????# ???????????????#?????????? | | ???????????????? ?????????????????????????? | | ?????????????????? ? ??????????????????????????? | | ????????????????????????????????????????????????? | | ????????????????????????????????????????????????? | | ????????????????????????????????????????????????? | | ????????????????????????????????????????????????? | | ????????????????????????????????????????????????? | | ????????????????????????????????????????????????? | | ????????????????????????????????????????????????? | | ????????????????????????????????????????????????? | | ????????????????????????????????????????????????? | | ????????????????????????????????????????????????? | +----------------------------------------------------+ Best States ------------- Heat Dissipation 28 Energy Generation 15 Energy Capacity 400 Matter Stores 300 Matter Capacity 300 Sight Range 16 Terrain Scan Density 10 Resistance: KI 20 Resistance: TH 20 Resistance: EX 20 Resistance: EM 20 Resistance: I 20 Resistance: S 20 Resistance: P 20 Evasion (%) 55 Targeting Accuracy 11 Offensive Hacking 10 Item Schematics ----------------- None Robot Schematics ------------------ None Fabricated ------------ Nothing Repaired ---------- Nothing Studied --------- None Alien Tech Used ----------------- None Achievements -------------- It's Just You Challenges ------------ None Game ------ Seed SapperLaserLauncher Manual? 0 Play Time 00:09:23 Cumulative 2.6 hours Start 2025.11.19 @ 10:43:18 End 2025.11.19 @ 10:52:29 Sessions 1 Manual Loads 0 Difficulty Adventurer Special Mode None Game No. 9 Rogue 6 Adventurer 3 Explorer 0 Win Type - Total 0 Types 0/0/0/0/0/0/0/0/0/0 Lore% 2 Gallery% 7 Achievement% 7 Wizard Run 0 Options --------- Layout 1 ASCII 0 Keyboard 0 Movement Mouse Keybinds 0 Fullscreen 2 Font 24/Smallcaps Map View 50x35 Zoom Use 0% Tactical HUD 1 Map Filters NONE Filters NONE Steam 0 RUN: 0feae8d6-c8fc-443e-a2ce-cef1aee9891b